bitfinex/quotes_ETHUSD_20250129
["timestamp","ask_amount","ask_price","bid_price","bid_amount"]
[1738129442872,3.20461,3120.5,3118.3,3.22798536]
[1738129442873,3.20607,3119.1,3118.9,0.8251]
[1738129443071,3.20615,3119.0,3118.9,0.8251]
[1738129443278,3.6297692,3119.3,3118.4,0.7787]
[1738129443601,3.20614,3119.1,3118.4,4.41821441]
[1738129443904,6.41229,3119.1,3118.5,0.80731714]
[1738129444216,3.20619,3119.0,3118.5,0.80731714]
[1738129445204,3.20619,3119.0,3118.5,1.25091154]
[1738129445505,3.20619,3119.0,3118.5,1.282973]
[1738129445706,3.20598,3119.2,3118.5,4.489563]
[1738129447013,3.20608,3119.1,3118.5,4.489563]
[1738129448878,3.20608,3119.1,3118.5,1.282973]
[1738129449083,3.20578,3119.4,3118.8,3.20628]
[1738129449297,3.20584,3119.3,3118.9,0.7892]
[1738129449599,3.20578,3119.4,3119.0,0.02861714]
[1738129450165,6.41162,3119.4,3119.0,0.02861714]
[1738129450604,3.20578,3119.4,3119.0,0.02861714]
[1738129451603,8.40845346,3119.4,3119.0,0.02861714]
[1738129451973,5.20261346,3119.4,3119.0,0.02861714]
[1738129453109,1.99683346,3119.4,3119.0,0.02861714]
[1738129453306,5.20258346,3119.4,3119.0,0.02861714]
[1738129454477,1.99683346,3119.4,3119.0,3.63710385]
[1738129454682,3.20554,3119.6,3119.1,0.7772]
[1738129454901,3.20554,3119.6,3119.1,0.80925534]
[1738129455101,3.20554,3119.6,3119.2,0.02945714]
[1738129455497,1.99683346,3119.7,3119.2,0.02945714]
[1738129455710,3.20584,3119.3,3119.2,0.02945714]
[1738129458913,3.20564,3119.5,3119.2,0.02945714]
[1738129459883,3.20584,3119.3,3119.2,0.02945714]
[1738129460811,3.20564,3119.5,3119.2,0.02945714]
[1738129461339,3.20584,3119.3,3119.2,0.02945714]
[1738129461738,3.20564,3119.5,3119.2,0.02945714]
[1738129463106,1.99683346,3119.6,3119.3,0.815]
[1738129463637,1.99683346,3119.6,3119.4,0.03028388]
[1738129464205,1.99683346,3119.6,3119.5,0.7606]
[1738129464405,1.99683346,3119.6,3119.5,0.7908111]
[1738129468128,1.99683346,3119.7,3119.5,0.7908111]
[1738129471028,1.99683346,3119.7,3119.6,4.05408328]
[1738129471336,1.99683346,3119.7,3119.6,4.81304825]
[1738129472218,1.99683346,3119.7,3119.6,4.78099497]
[1738129474238,1.99683346,3119.7,3119.6,4.81304541]
[1738129474446,1.99683346,3119.7,3119.6,5.11270141]
[1738129474740,1.99683346,3119.7,3119.6,5.08065097]
[1738129475136,1.99683346,3120.3,3119.7,0.7876]
[1738129475337,1.99683346,3120.3,3120.0,0.7876]
[1738129475945,1.99683346,3120.3,3120.1,0.02932475]
[1738129476127,1.99683346,3120.3,3120.1,0.06137147]
[1738129476328,1.99683346,3120.3,3120.1,0.02932475]
[1738129476641,1.99683346,3120.3,3120.1,3.23426475]
[1738129476806,1.99683346,3120.3,3120.1,3.9601749]
[1738129477008,1.99683346,3120.3,3120.2,3.2369661]
[1738129477207,1.99683346,3120.3,3120.2,3.99619185]
[1738129478140,3.97402,3121.2,3120.3,3.96682]
[1738129478141,1.99683346,3120.4,3120.3,3.96682]
[1738129478550,1.99683346,3120.4,3120.3,3.99592658]
[1738129478770,1.99683346,3120.4,3120.3,5.10930225]
[1738129481037,1.99683346,3120.8,3120.5,3.20458]
[1738129481343,1.99683346,3120.8,3120.6,0.02820729]
[1738129484149,1.99683346,3121.0,3120.6,0.02820729]
[1738129484351,1.99683346,3121.0,3120.8,4.01638]
[1738129484854,1.99683346,3121.0,3120.9,0.02820729]
[1738129487750,1.99683346,3121.2,3120.9,0.02820729]
[1738129489821,1.99683346,3121.2,3120.9,3.23230729]
[1738129490228,1.99683346,3121.2,3120.9,3.24603421]
[1738129490423,1.99683346,3121.2,3121.0,0.72623842]
[1738129490689,1.99683346,3121.2,3121.1,3.20399]
[1738129490828,1.99683346,3121.2,3121.1,3.23602618]
[1738129491177,1.99683346,3121.2,3121.1,3.99039]
[1738129491475,1.99683346,3121.5,3121.1,0.7864]
[1738129493976,3.20349,3121.6,3121.1,0.7864]
[1738129494329,2.77283346,3121.7,3121.1,3.99038]
[1738129494629,2.77283346,3121.7,3121.1,1.57846184]
[1738129494829,2.77283346,3121.7,3121.2,3.23592407]
[1738129495030,1.99683346,3121.7,3121.2,3.23592407]
[1738129495230,1.99683346,3121.7,3121.3,3.20371]
[1738129495431,1.99683346,3121.7,3121.4,3.23571377]
[1738129495654,1.99683346,3121.7,3121.4,3.87966815]
[1738129495855,1.99683346,3121.7,3121.4,7.05131438]
[1738129496056,1.99683346,3121.7,3121.4,3.84763438]
[1738129496424,1.99683346,3121.7,3121.4,3.20368]
[1738129496629,1.99683346,3121.7,3121.4,3.20358]
[1738129496836,1.99683346,3121.7,3121.5,3.20356]
[1738129497041,1.99683346,3121.8,3121.5,3.97286]
[1738129498572,1.99683346,3121.8,3121.5,0.7693]
[1738129498887,3.20366,3121.5,3121.0,0.826]
[1738129499092,3.20372,3121.4,3121.0,1.229028]
[1738129500160,3.20352,3121.6,3121.0,1.229028]
[1738129500358,3.20359,3121.5,3121.0,4.433128]
[1738129500666,0.7916,3121.7,3120.8,3.20424]
[1738129500667,3.20375,3121.4,3120.8,3.20424]
[1738129500981,3.96417,3120.9,3120.3,3.20479]
[1738129501156,0.7599,3120.9,3120.1,0.72591015]
[1738129501364,3.20465,3120.5,3120.1,0.72591015]
[1738129501557,0.8165,3120.4,3120.1,0.72591015]
[1738129501757,0.8165,3120.6,3120.1,3.93092015]
[1738129502055,0.8165,3120.6,3120.2,0.03204566]
[1738129503296,4.02102,3120.6,3120.2,0.03204566]
[1738129504356,4.02102,3120.6,3120.0,0.7841457]
[1738129504560,3.20465,3120.5,3120.0,0.7521]
[1738129504888,3.20465,3120.5,3119.9,3.20517]
[1738129505060,3.20465,3120.5,3120.0,3.23716595]
[1738129505794,3.20465,3120.5,3120.0,0.03204595]
[1738129506002,3.20472,3120.4,3119.9,3.20517]
[1738129506305,3.20465,3120.5,3119.9,3.20517]
[1738129506995,0.8165,3120.6,3120.0,3.23716756]
[1738129507203,4.02101,3120.6,3120.0,3.20512]
[1738129507701,0.8165,3120.6,3120.0,3.525632]
[1738129507860,0.8165,3120.6,3120.0,3.55767785]
[1738129508297,4.02101,3120.6,3120.0,3.55767785]
[1738129508963,0.8165,3120.6,3120.0,3.55761785]
[1738129509163,0.8165,3120.6,3120.0,3.525572]
[1738129509400,0.8165,3120.6,3120.0,6.76266787]
[1738129509609,0.8165,3120.6,3120.1,3.23703585]
[1738129510611,0.8165,3120.6,3120.1,3.20499]
[1738129511015,0.8165,3120.6,3120.2,3.23686559]
[1738129511330,1.99683346,3120.7,3120.3,3.20479]
[1738129511474,1.99683346,3120.7,3120.4,3.2047]
[1738129512110,1.99683346,3120.7,3120.5,0.02816105]
[1738129512814,1.99683346,3120.6,3120.1,3.8780252]
[1738129513192,1.99683346,3120.6,3120.2,0.02836595]
[1738129513524,1.99683346,3120.6,3120.2,3.23327595]
[1738129515399,1.99683346,3120.6,3120.2,3.94442107]
[1738129516297,1.99683346,3120.5,3120.2,3.94442107]
[1738129517687,1.99683346,3120.5,3120.2,0.02836595]
[1738129518034,0.8108,3120.3,3119.8,3.20532]
[1738129519012,4.01562,3120.3,3119.8,3.20532]
[1738129520297,4.01564,3120.3,3119.5,0.8182]
[1738129520806,4.01564,3120.3,3120.0,3.20511]
[1738129520807,0.8108,3120.3,3120.0,3.20511]
[1738129521133,1.99683346,3120.4,3120.0,3.20511]
[1738129521733,1.99683346,3120.4,3120.2,3.20483]
[1738129521919,1.99683346,3120.4,3120.3,3.20482]
[1738129522091,0.7534,3120.8,3120.3,3.20482]
[1738129522296,0.7534,3120.8,3120.2,3.20483]
[1738129522531,3.20402,3121.1,3120.4,4.03231]
[1738129522834,0.7534,3121.1,3120.6,3.20443]
[1738129523034,0.7534,3121.1,3120.6,3.23647032]
[1738129524357,3.9574,3121.1,3120.5,0.403231]
[1738129524551,3.20411,3121.0,3120.4,4.03231]
[1738129524752,3.9574,3121.1,3120.2,3.20488]
[1738129524753,0.7534,3121.1,3120.2,3.20488]
[1738129524898,0.8188,3120.7,3120.2,3.20488]
[1738129525809,2.82620561,3120.7,3120.2,3.20488]
[1738129526631,2.00740561,3120.7,3119.6,3.20548]
[1738129526806,3.20483,3120.3,3119.8,3.20529]
[1738129527141,0.8087,3120.1,3119.6,0.69613978]
[1738129527311,4.01376,3120.1,3119.6,0.69613978]
[1738129527494,0.8087,3120.1,3119.6,0.69613978]
[1738129527700,0.8087,3120.1,3119.7,3.20543]
[1738129527900,0.8087,3120.4,3119.9,3.20521]
[1738129528504,2.00740561,3120.2,3119.9,3.20521]
[1738129532353,2.00740561,3120.2,3119.7,3.91926807]
[1738129532518,2.00740561,3120.2,3119.7,3.20535]
[1738129532709,5.21237561,3120.2,3119.5,3.20559]
[1738129532908,3.2052,3120.0,3119.4,4.01213]
[1738129533102,0.8186,3119.9,3119.8,0.30020315]
[1738129533314,4.02383,3119.9,3119.8,0.30020315]
[1738129534325,4.746733,3119.9,3119.8,0.30020315]
[1738129535452,3.20538,3119.8,3119.2,3.50614315]
[1738129536745,0.8186,3119.9,3119.4,3.20572]
[1738129536952,0.8186,3119.9,3119.5,3.20562]
[1738129537651,2.80010561,3120.1,3119.5,3.20562]
[1738129538554,2.80010561,3120.1,3119.5,3.19862483]
[1738129539148,2.00740561,3119.8,3119.5,3.19862483]
[1738129540254,2.00740561,3119.8,3119.5,0.64043448]
[1738129540459,2.00740561,3119.8,3119.7,3.20543]
[1738129541836,2.00740561,3119.8,3119.7,4.01313]
[1738129542251,2.00740561,3119.9,3119.8,3.20533]
[1738129545862,3.97784,3120.6,3120.0,3.20503]
[1738129545863,2.00740561,3120.3,3120.0,3.20503]
[1738129546626,2.00740561,3120.3,3120.0,6.41007]
[1738129546963,2.00740561,3120.3,3120.0,3.20503]
[1738129549565,3.97784,3120.6,3120.0,3.20503]
[1738129550765,3.97784,3120.6,3120.1,3.205]
[1738129559772,3.97784,3120.6,3120.0,3.2051]
[1738129561149,7.18244,3120.6,3120.0,3.2051]
[1738129561354,3.97784,3120.6,3120.0,3.2051]
[1738129563594,0.7733,3120.6,3120.1,3.20499]
[1738129563882,3.98725,3120.8,3120.3,3.20481]
[1738129567101,3.98725,3120.8,3120.1,4.305489]
[1738129567307,3.20442,3120.7,3120.1,4.305489]
[1738129567909,3.98725,3120.8,3120.1,4.305489]
[1738129568096,3.98725,3120.8,3120.3,3.20479]
[1738129571092,3.98725,3120.8,3120.2,0.4305489]
[1738129571093,0.7829,3120.8,3120.5,3.20457]
[1738129571307,0.7857,3121.2,3120.7,3.20433]
[1738129571775,3.9896,3121.2,3120.7,3.20433]
[1738129576329,3.9896,3121.2,3120.6,0.824]
[1738129576480,3.2042,3120.9,3120.1,0.7601]
[1738129576787,3.98861,3120.6,3120.1,3.20497]
[1738129577909,0.7841,3120.6,3120.2,3.20492]
[1738129586188,0.7841,3120.6,3120.3,6.40956]
[1738129586425,4.00122,3120.9,3120.3,7.17246]
[1738129586717,4.00122,3120.9,3120.4,3.2047]
[1738129587289,4.401342,3120.9,3120.3,0.7629]
[1738129587624,4.401342,3120.9,3120.3,3.9677]
[1738129587821,4.401342,3120.9,3120.3,3.2048]
[1738129588421,3.20436,3120.8,3120.3,3.2048]
[1738129589293,3.20436,3120.8,3120.1,7.18842]
[1738129589488,3.20436,3120.8,3120.2,3.20489]
[1738129591636,3.9649302,3120.8,3120.2,3.20489]
[1738129592920,0.7569,3120.7,3119.8,4.00747]
[1738129593109,0.7569,3120.3,3119.8,4.00747]
[1738129593309,3.96176,3120.3,3119.8,4.00747]
[1738129594020,0.7569,3120.3,3119.8,7.21274]
[1738129594636,0.7569,3120.3,3119.8,4.00747]
[1738129594807,3.20457,3120.6,3120.0,3.20508]
[1738129595007,0.8112,3120.5,3120.0,3.20508]
[1738129595936,4.01582,3120.5,3120.0,3.20508]
[1738129598710,0.8112,3120.5,3120.2,3.20489]
[1738129598915,3.20434,3120.8,3120.3,0.7928]
[1738129598916,4.00824,3120.8,3120.3,0.7928]
[1738129599115,3.8039,3120.8,3120.3,3.99755]
[1738129600130,3.0,3120.9,3120.4,3.20465]
[1738129600331,3.0,3121.0,3120.6,3.2045]
[1738129600512,6.20416,3121.0,3120.4,3.20465]
[1738129601548,6.20416,3121.0,3120.5,3.20457]
[1738129601835,6.20416,3121.0,3120.4,3.20465]
[1738129603241,6.20416,3121.0,3120.3,0.7928]
[1738129603242,3.20431,3120.8,3120.3,0.7928]
[1738129603735,4.02024,3120.7,3120.0,4.00285]
[1738129603903,4.02024,3120.7,3120.1,3.20492]
[1738129604741,0.8158,3120.7,3120.2,3.20484]
[1738129604913,3.20431,3120.8,3120.3,3.20481]
[1738129605506,0.93596,3121.2,3120.3,3.20481]
[1738129605507,0.8173,3121.2,3120.7,3.2044]
[1738129605742,3.20382,3121.3,3120.8,0.8274]
[1738129606471,3.20391,3121.2,3120.8,0.8274]
[1738129606641,3.20391,3121.2,3120.5,3.99807]
[1738129606943,3.20402,3121.1,3120.5,3.99807]
[1738129608219,3.20402,3121.1,3120.5,7.20261]
[1738129608847,3.20402,3121.1,3120.5,7.20258]
[1738129609048,3.20402,3121.1,3120.5,7.9548861]
[1738129610250,3.20402,3121.1,3120.5,4.7503461]
[1738129614451,3.20402,3121.1,3120.6,3.20451]
[1738129616725,3.20382,3121.3,3120.6,3.20451]
[1738129616931,6.4077,3121.3,3120.6,3.20451]
[1738129617128,3.20382,3121.3,3120.6,3.20451]
[1738129617323,3.2039,3121.2,3120.6,3.20451]
[1738129617728,3.20401,3121.1,3120.6,3.20451]
[1738129620534,3.20401,3121.1,3120.6,4.00000861]
[1738129621368,3.20382,3121.3,3120.7,0.7531]
[1738129621565,3.0,3121.4,3120.8,3.20423]
[1738129621758,6.20369,3121.4,3120.9,0.7531]
[1738129623369,3.20389,3121.2,3120.9,0.7531]
[1738129623865,1.699258,3121.2,3120.6,0.8102]
[1738129624165,3.20431,3120.8,3120.3,4.01499]
[1738129625238,3.2042,3121.0,3120.4,3.2047]
[1738129625660,3.96244,3121.2,3120.4,3.2047]
[1738129625940,3.20415,3121.0,3120.4,3.2047]
[1738129628469,6.40834,3121.0,3120.4,3.2047]
[1738129628673,0.7585,3120.8,3119.9,1.46509648]
[1738129628839,3.2044,3120.7,3120.1,3.20501]
[1738129629038,0.7585,3120.8,3119.9,0.8102]
[1738129629039,3.20452,3120.6,3120.0,3.23707761]
[1738129629353,3.20452,3120.6,3120.1,3.20501]
[1738129629546,3.20452,3120.6,3120.0,3.20503]
[1738129629751,3.20452,3120.6,3120.0,3.927083]
[1738129630272,3.96281,3120.8,3120.2,0.7605]
[1738129630573,3.20431,3120.8,3120.2,3.96533]
[1738129630768,3.20415,3121.0,3120.4,0.7605]
[1738129631071,3.20424,3120.9,3120.4,0.7605]
[1738129631271,3.8091,3121.2,3120.4,0.7605]
[1738129631453,3.20433,3120.8,3120.4,0.7605]
[1738129635078,3.20433,3120.8,3120.1,3.20494]
[1738129635378,3.20441,3120.7,3120.2,0.7504]
[1738129636844,0.7913,3120.8,3120.0,0.7504]
[1738129637082,6.4096,3120.4,3120.0,0.7504]
[1738129637243,3.9961,3120.4,3120.0,0.7504]
[1738129640487,3.2048,3120.4,3120.0,0.7504]
[1738129640651,3.20455,3120.6,3120.0,0.7504]
[1738129641089,3.20455,3120.6,3120.0,3.95552]
[1738129641583,3.20462,3120.5,3120.0,0.7504]
[1738129644999,3.20462,3120.5,3120.0,3.9555]
[1738129648592,0.7815,3120.7,3120.1,3.20501]
[1738129648593,3.98597,3120.7,3120.1,3.20501]
[1738129649392,3.20447,3120.7,3120.1,3.20501]
[1738129650891,4.464072,3120.7,3120.1,3.20501]
[1738129659484,3.20453,3120.6,3120.1,3.20501]
[1738129659680,3.20453,3120.6,3120.0,0.7504]
[1738129659983,3.20453,3120.6,3120.0,3.95546]
[1738129660434,3.20453,3120.6,3120.0,0.7504]
[1738129660711,3.9713772,3120.6,3120.1,3.205]
[1738129663915,0.7668472,3120.6,3120.2,3.20489]
[1738129664121,1.259602,3120.7,3120.3,0.8044]
[1738129665094,5.37,3120.9,3120.5,3.20455]
[1738129665300,3.0,3120.8,3120.7,0.7549]
[1738129666560,3.0,3121.0,3120.7,0.7549]
[1738129669231,4.1219,3121.1,3120.7,0.7549]
[1738129669526,3.99283,3121.4,3120.7,3.95929]
[1738129669691,3.20373,3121.4,3120.8,3.2043]
[1738129669891,3.20373,3121.4,3120.9,0.7873]
[1738129670521,3.0,3121.3,3120.9,0.7873]
[1738129670693,2.99314243,3121.3,3120.9,0.7873]
[1738129672448,3.20373,3121.4,3120.9,0.7873]
[1738129672653,3.20355,3121.6,3120.9,4.39057]
[1738129672855,5.37,3121.7,3121.0,4.26987838]
[1738129673133,8.5734,3121.7,3121.1,4.01841]
[1738129673309,3.0,3121.6,3121.1,4.01841]
[1738129673504,3.0,3121.6,3121.3,0.7546]
[1738129673704,3.0,3121.6,3121.3,1.25702884]
[1738129674121,0.41644731,3121.8,3121.3,1.25702884]
[1738129674456,0.41644731,3121.8,3121.5,3.95816]
[1738129674760,0.41644731,3121.8,3121.5,3.99019264]
[1738129675329,0.41644731,3121.8,3121.5,3.95816]
[1738129675522,0.41644731,3121.8,3121.6,0.82276884]
[1738129676818,0.41644731,3121.8,3121.5,0.7546]
[1738129677223,0.41644731,3121.8,3121.5,3.95811]
[1738129677913,0.41644731,3121.8,3121.7,0.7697]
[1738129679836,0.41644731,3121.8,3121.7,3.97308]
[1738129680042,0.41644731,3121.8,3121.7,4.00511084]
[1738129680205,0.41644731,3121.8,3121.7,4.72597892]
[1738129680540,0.41644731,3121.8,3121.7,4.69394808]
[1738129680737,0.41644731,3121.8,3121.7,3.92424808]
[1738129680901,0.41644731,3121.8,3121.7,4.69394808]
[1738129691063,0.41644731,3121.8,3121.7,4.72597778]
[1738129691766,0.41644731,3121.8,3121.7,4.69394808]
[1738129692563,0.41644731,3121.8,3121.7,0.72086808]
[1738129695741,0.41644731,3121.8,3121.7,3.92424808]
[1738129696402,3.95958,3121.7,3121.3,0.50242884]
[1738129696667,0.7562,3121.7,3120.9,0.7689]
[1738129696975,0.7562,3121.2,3120.6,3.97332]
[1738129697139,0.7562,3121.2,3120.7,3.20434]
[1738129697338,3.20359,3121.5,3120.8,3.20421]
[1738129697539,0.7562,3121.4,3120.9,3.20418]
[1738129699453,3.20359,3121.5,3121.0,0.7689]
[1738129700289,9.32963,3121.7,3121.0,3.97293]
[1738129700668,9.32963,3121.7,3120.8,3.601541]
[1738129700669,3.20369,3121.5,3120.8,3.601541]
[1738129700901,3.20369,3121.5,3120.9,3.20412]
[1738129701049,3.20369,3121.5,3120.9,3.88788989]
[1738129703384,3.20369,3121.5,3120.9,3.20412]
[1738129703581,6.40736,3121.5,3120.8,3.601541]
[1738129703880,3.20367,3121.5,3120.8,3.601541]
[1738129704405,8.57341,3121.7,3120.6,3.97332]
[1738129704406,3.20385,3121.3,3120.6,3.97332]
[1738129704611,5.37,3121.7,3120.4,3.97354]
[1738129704612,3.20412,3121.0,3120.4,3.97354]
[1738129704815,3.20421,3120.9,3120.4,3.97354]
[1738129704986,0.7562,3120.8,3120.4,3.20464]
[1738129705483,3.96029,3121.1,3120.4,3.20464]
[1738129705689,3.96029,3121.1,3120.6,3.20449]
[1738129706878,0.7562,3121.1,3120.6,3.20449]
[1738129707924,3.96002,3121.3,3120.7,3.20434]
[1738129709009,0.7562,3121.3,3120.8,3.20424]
[1738129709214,0.7562,3121.3,3120.9,3.20417]
[1738129710482,3.0,3121.4,3121.0,3.20408]
[1738129711587,3.0,3121.4,3120.8,0.717763]
[1738129711838,3.0,3121.4,3120.9,3.20419]
[1738129712362,8.57361,3121.5,3121.0,3.95796]
[1738129712557,5.37,3121.5,3121.1,0.716215]
[1738129712758,9.32968,3121.6,3121.1,0.716215]
[1738129715478,6.1262,3121.6,3121.3,3.20378]
[1738129715676,5.37,3121.6,3121.4,3.20367]
[1738129715883,0.41644731,3121.8,3121.4,3.20367]
[1738129716044,0.41644731,3121.8,3121.5,0.640745]
[1738129716245,0.41644731,3121.8,3121.5,3.844315]
[1738129716981,0.41644731,3121.8,3121.5,0.640745]
[1738129718756,0.41644731,3121.8,3121.5,3.844305]
[1738129726508,0.41644731,3121.8,3121.5,0.640745]
[1738129726810,0.41644731,3121.8,3121.3,3.20372]
[1738129726811,3.20348,3121.6,3120.9,3.20413]
[1738129726972,3.20365,3121.5,3120.9,3.95473]
[1738129727380,0.7964,3121.3,3120.8,3.20425]
[1738129728303,4.0002,3121.3,3120.8,3.20425]
[1738129728478,0.7964,3121.3,3120.8,3.20425]
[1738129728809,0.7964,3121.3,3120.9,0.395485]
[1738129733218,4.0002,3121.3,3120.9,0.395485]
[1738129733722,3.20403,3121.1,3120.7,0.7506]
[1738129734739,3.20403,3121.1,3120.6,3.2045]
[1738129734913,0.7763,3121.0,3120.6,3.2045]
[1738129736997,3.20386,3121.3,3120.7,3.20437]
[1738129738225,3.98004,3121.4,3120.6,3.2045]
[1738129738430,7.18381,3121.4,3120.8,3.20428]
[1738129738738,3.98004,3121.4,3120.8,3.20428]
[1738129739436,3.98004,3121.4,3120.7,1.09695]
[1738129739634,3.98004,3121.4,3120.8,3.20427]
[1738129740826,3.98004,3121.4,3120.8,6.40854]
[1738129741139,3.98004,3121.4,3120.8,3.954819]
[1738129742058,0.7763,3121.4,3121.0,3.20406]
[1738129742256,3.8097,3121.6,3121.1,0.7777]
[1738129742457,3.8097,3121.6,3121.2,3.20389]
[1738129743874,5.37,3121.7,3121.2,3.20389]
[1738129744049,0.41644731,3121.8,3121.6,0.7777]
[1738129744245,0.41644731,3121.8,3121.6,3.98114]
[1738129744651,0.41644731,3121.8,3121.7,3.20338]
[1738129747388,0.41644731,3121.8,3121.5,3.20351]
[1738129748588,0.41644731,3121.8,3121.6,3.20347]
[1738129748792,0.41644731,3121.8,3121.7,0.320347]
[1738129750369,0.41644731,3121.8,3121.5,3.20353]
[1738129752191,0.41644731,3121.8,3121.6,3.20342]
[1738129752493,0.41644731,3121.8,3121.7,3.99298]
[1738129752665,0.41644731,3121.8,3121.7,4.02501252]
[1738129753058,0.41644731,3121.8,3121.7,4.02500909]
[1738129753264,0.41644731,3121.8,3121.7,4.747852]
[1738129754094,0.41644731,3121.8,3121.7,4.71582291]
[1738129756273,0.41644731,3121.8,3121.7,0.72284291]
[1738129756484,0.41644731,3121.8,3121.4,10.44287]
[1738129756684,0.41644731,3121.8,3121.5,3.20354]
[1738129760108,0.41644731,3121.8,3121.4,4.0356]
[1738129760265,0.41644731,3121.8,3121.7,3.99598]
[1738129760467,0.41644731,3121.8,3121.7,4.02800937]
[1738129760672,0.41644731,3121.8,3121.7,4.98188015]
[1738129764013,0.41644731,3121.8,3121.7,4.94985078]
[1738129765917,0.41644731,3121.8,3121.7,4.98188042]
[1738129767613,0.41644731,3121.8,3121.7,4.94985078]
[1738129768718,0.41644731,3121.8,3121.7,5.58311763]
[1738129776821,0.41644731,3121.8,3121.7,4.79051763]
[1738129777017,0.41644731,3121.8,3121.5,3.20348]
[1738129777922,0.41644731,3121.8,3121.5,6.40701]
[1738129778299,0.41644731,3121.8,3121.6,3.20347]
[1738129780596,0.41644731,3121.8,3121.5,3.20348]
[1738129780597,0.41644731,3121.8,3121.7,3.20338]
[1738129783725,0.41644731,3121.8,3121.7,4.55418]
[1738129783919,0.41644731,3121.8,3121.7,6.20472883]
[1738129784128,0.41644731,3121.8,3121.7,6.2367538]
[1738129784486,0.41644731,3121.8,3121.7,5.65472883]
[1738129787422,0.41644731,3121.8,3121.7,6.20472883]
[1738129787624,0.41644731,3121.8,3121.7,6.23675699]
[1738129788326,0.41644731,3121.8,3121.7,6.20472883]
[1738129788926,0.41644731,3121.8,3121.7,6.23675457]
[1738129789125,0.41644731,3121.8,3121.7,11.61675457]
[1738129789291,0.41644731,3121.8,3121.7,11.58472883]
[1738129790995,0.63916623,3122.4,3122.3,3.20276]
[1738129791224,0.63916623,3122.4,3122.3,4.02768223]
[1738129791593,0.63916623,3122.4,3122.3,3.99566]
[1738129793387,0.63916623,3122.4,3122.3,3.20276]
[1738129793591,0.63916623,3122.4,3122.3,4.163823]
[1738129796634,0.63916623,3122.4,3122.3,4.81606658]
[1738129803325,0.63916623,3122.4,3122.3,4.163823]
[1738129803519,0.63916623,3122.4,3122.3,3.20276]
[1738129804504,0.7991,3122.3,3122.1,3.20287]
[1738129804956,0.7991,3122.3,3122.1,6.40578]
[1738129805452,0.7991,3122.3,3122.1,3.20287]
[1738129805659,0.7991,3122.3,3122.2,3.20286]
[1738129808008,0.63916623,3122.4,3122.3,3.20276]
[1738129808251,0.63916623,3122.4,3122.3,7.21118516]
[1738129808426,0.63916623,3122.4,3122.3,7.17916]
[1738129810742,0.63916623,3122.4,3122.3,7.72916]
[1738129811145,0.7714,3123.3,3123.2,3.20184]
[1738129812054,0.7701,3123.8,3123.4,3.20161]
[1738129812950,0.7701,3123.8,3123.6,6.40278]
[1738129813155,0.7701,3123.8,3123.6,3.20136]
[1738129814853,0.7701,3123.8,3123.7,3.20133]
[1738129817743,0.7653,3124.2,3123.9,3.20109]
[1738129818056,0.7653,3124.2,3124.1,3.20092]
[1738129819058,0.7653,3124.2,3123.9,6.40213]
[1738129819547,0.7653,3124.2,3123.9,6.4021]
[1738129820155,0.7653,3124.2,3124.0,3.20101]
[1738129820759,0.7653,3124.2,3124.1,3.20092]
[1738129820961,0.8074,3124.9,3124.1,3.841016]
[1738129821126,0.8074,3124.9,3124.4,3.20054]
[1738129822523,0.7526,3124.8,3124.3,3.20062]
[1738129823160,0.7526,3124.8,3124.5,3.2005]
[1738129823662,0.7526,3124.8,3124.6,3.20039]
[1738129825859,0.7526,3124.8,3124.7,3.2003]
[1738129826229,5.37,3125.2,3124.7,3.2003]
[1738129826230,0.7817,3125.1,3125.0,3.2]
[1738129827058,0.7817,3125.6,3125.3,3.19967]
[1738129827444,0.7817,3125.6,3125.5,3.19948]
[1738129828335,0.7817,3125.6,3125.3,3.19967]
[1738129828772,0.7817,3125.6,3125.5,3.19948]
[1738129829633,0.76,3126.2,3125.8,3.19915]
[1738129829975,0.76,3126.2,3125.5,1.4649234]
[1738129829976,0.76,3126.2,3126.1,3.19887]
[1738129832455,0.76,3126.2,3126.1,3.2622401]
[1738129834938,5.37,3127.0,3126.7,3.19818]
[1738129835166,5.37,3127.3,3126.9,3.19804]
[1738129835532,0.8135,3127.2,3126.5,3.19836]
[1738129835743,4.01135,3127.1,3127.0,0.05956271]
[1738129835979,3.19813,3126.9,3126.2,3.19874]
[1738129836275,4.01177,3126.7,3126.3,0.05956271]
[1738129836450,3.19827,3126.7,3126.0,3.19891]
[1738129836650,0.8135,3126.6,3126.4,3.19856]
[1738129836850,0.8135,3126.6,3126.5,3.19846]
[1738129837054,6.1835,3126.9,3126.6,3.19833]
[1738129837380,6.1835,3126.9,3126.7,0.05911814]
[1738129837676,6.1835,3126.9,3126.8,3.19815]
[1738129837977,5.37,3126.9,3126.8,3.84370981]
[1738129838168,5.37,3126.9,3126.8,3.90282795]
[1738129839062,0.8211,3127.3,3127.2,3.19774]
[1738129839474,0.8211,3127.3,3127.2,0.05911814]
[1738129839795,0.8211,3127.3,3127.0,3.19791]
[1738129839964,0.8211,3127.3,3127.2,0.05714754]
[1738129840441,0.8211,3127.3,3127.0,3.19791]
[1738129840644,0.8211,3127.3,3127.1,0.05714754]
[1738129841450,0.7856,3127.2,3126.6,3.19833]
[1738129841680,0.7856,3127.2,3126.7,0.05714754]
[1738129842383,0.7856,3127.2,3126.8,3.19808]
[1738129842547,0.7856,3127.2,3126.9,3.19803]
[1738129843077,0.7856,3127.2,3127.0,0.05714754]
[1738129843656,0.7856,3127.2,3126.7,3.19825]
[1738129843964,0.7856,3127.2,3126.8,0.05624939]
[1738129844480,0.7856,3127.2,3126.9,0.05624939]
[1738129844681,0.783,3127.0,3126.0,2.03778572]
[1738129844985,3.198,3127.0,3126.4,3.1985]
[1738129845187,0.7928,3126.9,3126.5,3.19839]
[1738129845487,0.7928,3126.9,3126.6,0.05562387]
[1738129845899,0.7928,3126.9,3126.2,3.19874]
[1738129846185,3.99091,3126.9,3126.3,0.05562387]